[Event "Late-Titled-Tuesday-Blitz-December-26-2023"]
[Site "Chess.com"]
[Date "2023.12.26"]
[Round "6"]
[White "Alexei_Gubajdullin"]
[Black "Misticpikachu"]
[Result "1/2-1/2"]
[WhiteElo "2604"]
[BlackElo "2476"]
[TimeControl "180+1"]
[EndTime "15:09:40 PST"]
[Termination "Game drawn by 50-move rule"]

1. e4 {[%clk 0:02:58.8]} 1... e6 {[%clk 0:02:59.2]} 2. Qe2 {[%clk 0:02:54.6]}
2... Nc6 {[%clk 0:02:58.2]} 3. Nf3 {[%clk 0:02:54.2]} 3... e5 {[%clk 0:02:58.2]}
4. g3 {[%clk 0:02:53]} 4... Nf6 {[%clk 0:02:57.7]} 5. Bg2 {[%clk 0:02:52]} 5...
Bc5 {[%clk 0:02:58]} 6. O-O {[%clk 0:02:51.3]} 6... O-O {[%clk 0:02:58.5]} 7.
Nc3 {[%clk 0:02:44.6]} 7... a6 {[%clk 0:02:51]} 8. d3 {[%clk 0:02:44.2]} 8... d6
{[%clk 0:02:50.3]} 9. Bg5 {[%clk 0:02:42.9]} 9... h6 {[%clk 0:02:44]} 10. Bh4
{[%clk 0:02:42.7]} 10... Be6 {[%clk 0:02:41.1]} 11. Nd5 {[%clk 0:02:38.9]} 11...
Bxd5 {[%clk 0:02:40.6]} 12. exd5 {[%clk 0:02:38.8]} 12... Nd4 {[%clk 0:02:41]}
13. Nxd4 {[%clk 0:02:38.6]} 13... Bxd4 {[%clk 0:02:41.6]} 14. c3 {[%clk
0:02:33.7]} 14... Ba7 {[%clk 0:02:29.9]} 15. g4 {[%clk 0:02:32.5]} 15... g5
{[%clk 0:01:48.4]} 16. Bg3 {[%clk 0:02:31]} 16... Qd7 {[%clk 0:01:45.4]} 17. Bf3
{[%clk 0:02:28]} 17... Kg7 {[%clk 0:01:44]} 18. Kg2 {[%clk 0:02:27]} 18... Rae8
{[%clk 0:01:42.4]} 19. h4 {[%clk 0:02:25.2]} 19... e4 {[%clk 0:01:41.3]} 20.
dxe4 {[%clk 0:02:09.1]} 20... Nxd5 {[%clk 0:01:41.1]} 21. hxg5 {[%clk
0:02:08.8]} 21... hxg5 {[%clk 0:01:38.9]} 22. Qd2 {[%clk 0:02:08.3]} 22... Nf4+
{[%clk 0:01:32.4]} 23. Bxf4 {[%clk 0:02:07.8]} 23... gxf4 {[%clk 0:01:33.3]} 24.
Qxf4 {[%clk 0:02:08]} 24... f6 {[%clk 0:01:28.8]} 25. Rh1 {[%clk 0:02:06.3]}
25... Rh8 {[%clk 0:01:28.4]} 26. Rh5 {[%clk 0:02:04.3]} 26... Qe6 {[%clk
0:01:07.1]} 27. Rah1 {[%clk 0:02:02.1]} 27... Rxh5 {[%clk 0:00:51.6]} 28. Rxh5
{[%clk 0:01:35.5]} 28... Rh8 {[%clk 0:00:51.4]} 29. Rxh8 {[%clk 0:01:35.1]}
29... Kxh8 {[%clk 0:00:52.3]} 30. Qh6+ {[%clk 0:01:34]} 30... Kg8 {[%clk
0:00:53]} 31. g5 {[%clk 0:01:33.1]} 31... Qf7 {[%clk 0:00:44.2]} 32. gxf6 {[%clk
0:01:28]} 32... Qh7 {[%clk 0:00:39.9]} 33. Qg5+ {[%clk 0:01:20.3]} 33... Kf8
{[%clk 0:00:39.9]} 34. e5 {[%clk 0:01:15.8]} 34... dxe5 {[%clk 0:00:21.1]} 35.
Bxb7 {[%clk 0:01:04]} 35... Qg8 {[%clk 0:00:20.1]} 36. Qxg8+ {[%clk 0:00:44.6]}
36... Kxg8 {[%clk 0:00:21]} 37. Bxa6 {[%clk 0:00:43.3]} 37... Kf7 {[%clk
0:00:19.4]} 38. Kf3 {[%clk 0:00:38.7]} 38... Kxf6 {[%clk 0:00:20.3]} 39. Bb7
{[%clk 0:00:37.2]} 39... Ke6 {[%clk 0:00:20]} 40. a4 {[%clk 0:00:35.8]} 40...
Kd6 {[%clk 0:00:20.5]} 41. a5 {[%clk 0:00:34.3]} 41... c5 {[%clk 0:00:18.3]} 42.
Ba6 {[%clk 0:00:31.6]} 42... Bb8 {[%clk 0:00:14.6]} 43. Ke4 {[%clk 0:00:31.1]}
43... Ba7 {[%clk 0:00:11]} 44. Bc4 {[%clk 0:00:29.6]} 44... Bb8 {[%clk
0:00:10.4]} 45. f3 {[%clk 0:00:29.6]} 45... Ba7 {[%clk 0:00:10.6]} 46. Kf5
{[%clk 0:00:28]} 46... Bb8 {[%clk 0:00:10.3]} 47. Kf6 {[%clk 0:00:28.2]} 47...
Kc6 {[%clk 0:00:06.1]} 48. Ke6 {[%clk 0:00:27.4]} 48... Bc7 {[%clk 0:00:06.5]}
49. Ke7 {[%clk 0:00:27.1]} 49... Bxa5 {[%clk 0:00:06.1]} 50. Ke6 {[%clk
0:00:24]} 50... Bc7 {[%clk 0:00:06.4]} 51. Kf5 {[%clk 0:00:19.5]} 51... Bd6
{[%clk 0:00:06.6]} 52. Ke4 {[%clk 0:00:19.7]} 52... Bc7 {[%clk 0:00:05.9]} 53.
Kd3 {[%clk 0:00:19.8]} 53... Kd6 {[%clk 0:00:06.3]} 54. Bg8 {[%clk 0:00:19.8]}
54... Bb6 {[%clk 0:00:06.7]} 55. Kc4 {[%clk 0:00:20.1]} 55... Bc7 {[%clk
0:00:07.4]} 56. Bh7 {[%clk 0:00:20.5]} 56... Bd8 {[%clk 0:00:06]} 57. Be4 {[%clk
0:00:20.2]} 57... Be7 {[%clk 0:00:05.7]} 58. Kb5 {[%clk 0:00:20.4]} 58... Kc7
{[%clk 0:00:06.1]} 59. Ka6 {[%clk 0:00:20.5]} 59... Bd6 {[%clk 0:00:06]} 60. Bd5
{[%clk 0:00:19.9]} 60... Be7 {[%clk 0:00:06.5]} 61. b3 {[%clk 0:00:19.7]} 61...
Bd6 {[%clk 0:00:07]} 62. Kb5 {[%clk 0:00:19.6]} 62... Be7 {[%clk 0:00:07.5]} 63.
Kc4 {[%clk 0:00:19.1]} 63... Kb6 {[%clk 0:00:06.5]} 64. Kd3 {[%clk 0:00:18.8]}
64... Kc7 {[%clk 0:00:06.4]} 65. Ke4 {[%clk 0:00:19.1]} 65... Kd6 {[%clk
0:00:06.6]} 66. b4 {[%clk 0:00:19.2]} 66... cxb4 {[%clk 0:00:07.5]} 67. cxb4
{[%clk 0:00:19.5]} 67... Bd8 {[%clk 0:00:08.3]} 68. b5 {[%clk 0:00:19.5]} 68...
Bb6 {[%clk 0:00:08.9]} 69. Bf7 {[%clk 0:00:18]} 69... Bd4 {[%clk 0:00:09.1]} 70.
Be8 {[%clk 0:00:17.9]} 70... Bb6 {[%clk 0:00:09.4]} 71. Bf7 {[%clk 0:00:18.1]}
71... Bc5 {[%clk 0:00:09.7]} 72. Bg8 {[%clk 0:00:17.7]} 72... Bb6 {[%clk
0:00:10.3]} 73. Bc4 {[%clk 0:00:16.7]} 73... Bc5 {[%clk 0:00:10.7]} 74. Be2
{[%clk 0:00:16.6]} 74... Bb6 {[%clk 0:00:11.3]} 75. Kf5 {[%clk 0:00:16.9]} 75...
Bc5 {[%clk 0:00:11.3]} 76. Kf6 {[%clk 0:00:17.2]} 76... Bb6 {[%clk 0:00:10]} 77.
Kf7 {[%clk 0:00:17.6]} 77... Bd4 {[%clk 0:00:10]} 78. Ke8 {[%clk 0:00:17.6]}
78... Bb6 {[%clk 0:00:10.5]} 79. Kf7 {[%clk 0:00:17.8]} 79... Bd4 {[%clk
0:00:10.5]} 80. Kg6 {[%clk 0:00:18.7]} 80... Bc5 {[%clk 0:00:10.7]} 81. Kf5
{[%clk 0:00:19.2]} 81... Bb6 {[%clk 0:00:11.2]} 82. Ke4 {[%clk 0:00:19.6]} 82...
Bc5 {[%clk 0:00:11.7]} 83. Kd3 {[%clk 0:00:19.9]} 83... Bb6 {[%clk 0:00:12.3]}
84. Kc4 {[%clk 0:00:20.3]} 84... Bc5 {[%clk 0:00:12]} 85. Bd3 {[%clk 0:00:20.4]}
85... Bb6 {[%clk 0:00:11.8]} 86. Bf5 {[%clk 0:00:20.7]} 86... Bc5 {[%clk
0:00:11.9]} 87. Bg4 {[%clk 0:00:21.2]} 87... Bb6 {[%clk 0:00:11.9]} 88. Kd3
{[%clk 0:00:21.7]} 88... Bc5 {[%clk 0:00:12.2]} 89. Ke4 {[%clk 0:00:22.1]} 89...
Bb6 {[%clk 0:00:12.3]} 90. Kf5 {[%clk 0:00:22.5]} 90... Bc5 {[%clk 0:00:12.7]}
91. Kf6 {[%clk 0:00:22.7]} 91... Bb6 {[%clk 0:00:13.1]} 92. Kf7 {[%clk
0:00:23.2]} 92... Bc5 {[%clk 0:00:12.7]} 93. Bf5 {[%clk 0:00:23.6]} 93... Bd4
{[%clk 0:00:12.3]} 94. Ke8 {[%clk 0:00:24.5]} 94... Bb6 {[%clk 0:00:12.5]} 95.
Be4 {[%clk 0:00:25]} 95... Ke6 {[%clk 0:00:10.8]} 96. Bg6 {[%clk 0:00:23.6]}
96... Kd6 {[%clk 0:00:11.2]} 97. Bd3 {[%clk 0:00:22.6]} 97... Ke6 {[%clk
0:00:11.2]} 98. Bf1 {[%clk 0:00:23.5]} 98... Kd6 {[%clk 0:00:11.4]} 99. Bh3
{[%clk 0:00:23.6]} 99... Bc7 {[%clk 0:00:11]} 100. Bg4 {[%clk 0:00:23.1]} 100...
Bb6 {[%clk 0:00:11.4]} 101. Bf5 {[%clk 0:00:22.4]} 101... Ba5 {[%clk 0:00:10]}
102. Be4 {[%clk 0:00:23.3]} 102... Bb6 {[%clk 0:00:10.5]} 103. Bc6 {[%clk
0:00:23.8]} 103... Ba5 {[%clk 0:00:10.5]} 104. Kf7 {[%clk 0:00:24.1]} 104... Bb6
{[%clk 0:00:10.7]} 105. Kf6 {[%clk 0:00:24.3]} 105... Bc7 {[%clk 0:00:11.1]}
106. Kf5 {[%clk 0:00:25.2]} 106... Bb6 {[%clk 0:00:11.7]} 107. Ke4 {[%clk
0:00:25.6]} 107... Bc7 {[%clk 0:00:12.4]} 108. Kd3 {[%clk 0:00:26.1]} 108... Bb6
{[%clk 0:00:12.6]} 109. Kc4 {[%clk 0:00:27]} 109... Bc7 {[%clk 0:00:13.2]} 110.
Be4 {[%clk 0:00:27.3]} 110... Bb6 {[%clk 0:00:13.6]} 111. Bf5 {[%clk 0:00:27.5]}
111... Bc7 {[%clk 0:00:14.1]} 112. Bg6 {[%clk 0:00:27.5]} 112... Bb6 {[%clk
0:00:14.6]} 113. Be8 {[%clk 0:00:27.8]} 113... Ba5 {[%clk 0:00:14.6]} 114. Bc6
{[%clk 0:00:28.3]} 114... Bb6 {[%clk 0:00:15.1]} 115. Kb3 {[%clk 0:00:28.6]}
115... Bc7 {[%clk 0:00:14.5]} 116. Ka4 {[%clk 0:00:29.5]} 116... Bb6 {[%clk
0:00:14.8]} 117. Ka3 {[%clk 0:00:29.7]} 117... Bc7 {[%clk 0:00:15]} 118. Kb2
{[%clk 0:00:30.6]} 1/2-1/2

[Event "Late-Titled-Tuesday-Blitz-December-26-2023"]
[Site "Chess.com"]
[Date "2023.12.26"]
[Round "7"]
[White "Iball95"]
[Black "FrenchHarvey"]
[Result "1/2-1/2"]
[WhiteElo "2817"]
[BlackElo "2643"]
[TimeControl "180+1"]
[EndTime "15:12:02 PST"]
[Termination "Game drawn by agreement"]

1. e4 {[%clk 0:02:59.2]} 1... c5 {[%clk 0:02:58.4]} 2. Nf3 {[%clk 0:02:59.8]}
2... Nc6 {[%clk 0:02:59]} 3. Nc3 {[%clk 0:03:00.3]} 3... Nf6 {[%clk 0:02:58.8]}
4. Bb5 {[%clk 0:03:00.2]} 4... Qc7 {[%clk 0:02:58.8]} 5. O-O {[%clk 0:02:59.8]}
5... a6 {[%clk 0:02:59.5]} 6. Bxc6 {[%clk 0:02:59.4]} 6... dxc6 {[%clk
0:03:00.4]} 7. e5 {[%clk 0:02:44]} 7... Nd5 {[%clk 0:03:00.3]} 8. h3 {[%clk
0:02:39.9]} 8... Bf5 {[%clk 0:02:58.7]} 9. Re1 {[%clk 0:02:39]} 9... e6 {[%clk
0:02:59]} 10. d3 {[%clk 0:02:38.4]} 10... Nxc3 {[%clk 0:02:57.7]} 11. bxc3
{[%clk 0:02:38.5]} 11... h6 {[%clk 0:02:55.2]} 12. c4 {[%clk 0:02:34.2]} 12...
Be7 {[%clk 0:02:54.3]} 13. Qe2 {[%clk 0:02:31.9]} 13... O-O {[%clk 0:02:54]} 14.
a4 {[%clk 0:02:29.6]} 14... b5 {[%clk 0:02:53.2]} 15. axb5 {[%clk 0:02:24.2]}
15... axb5 {[%clk 0:02:52.9]} 16. Rxa8 {[%clk 0:02:22.8]} 16... Rxa8 {[%clk
0:02:53.8]} 17. cxb5 {[%clk 0:02:22.7]} 17... cxb5 {[%clk 0:02:53]} 18. Bf4
{[%clk 0:02:22.7]} 18... Ra2 {[%clk 0:02:46.4]} 1/2-1/2

[Event "Late-Titled-Tuesday-Blitz-December-26-2023"]
[Site "Chess.com"]
[Date "2023.12.26"]
[Round "7"]
[White "MFBerna"]
[Black "2KTNGO"]
[Result "0-1"]
[WhiteElo "2370"]
[BlackElo "2511"]
[TimeControl "180+1"]
[EndTime "15:12:30 PST"]
[Termination "2KTNGO won by resignation"]

1. b3 {[%clk 0:02:59.6]} 1... e5 {[%clk 0:02:59.1]} 2. Bb2 {[%clk 0:03:00.5]}
2... Nc6 {[%clk 0:02:59.4]} 3. e3 {[%clk 0:03:01.4]} 3... g6 {[%clk 0:02:59.6]}
4. Nf3 {[%clk 0:03:01.3]} 4... Bg7 {[%clk 0:02:59.7]} 5. Bb5 {[%clk 0:02:58.3]}
5... Nge7 {[%clk 0:02:58.1]} 6. O-O {[%clk 0:02:58.4]} 6... O-O {[%clk 0:02:57]}
7. d4 {[%clk 0:02:57.2]} 7... e4 {[%clk 0:02:56.3]} 8. Nfd2 {[%clk 0:02:57.1]}
8... f5 {[%clk 0:02:56.6]} 9. Be2 {[%clk 0:02:52.9]} 9... d5 {[%clk 0:02:55.1]}
10. c4 {[%clk 0:02:52.8]} 10... g5 {[%clk 0:02:44]} 11. Nc3 {[%clk 0:02:51.2]}
11... Be6 {[%clk 0:02:43.5]} 12. Ba3 {[%clk 0:02:50.5]} 12... Rf7 {[%clk
0:02:41.4]} 13. Bxe7 {[%clk 0:02:49.4]} 13... Nxe7 {[%clk 0:02:40]} 14. cxd5
{[%clk 0:02:47.9]} 14... Nxd5 {[%clk 0:02:38.9]} 15. Nxd5 {[%clk 0:02:48.8]}
15... Bxd5 {[%clk 0:02:38.1]} 16. Bc4 {[%clk 0:02:47.3]} 16... c6 {[%clk
0:02:37.8]} 17. Bxd5 {[%clk 0:02:46.1]} 17... cxd5 {[%clk 0:02:37.3]} 18. Rc1
{[%clk 0:02:45.8]} 18... Qd7 {[%clk 0:02:35.1]} 19. Nb1 {[%clk 0:02:42]} 19...
f4 {[%clk 0:02:34.9]} 20. Qh5 {[%clk 0:02:40.4]} 20... h6 {[%clk 0:02:27.8]} 21.
Nc3 {[%clk 0:02:39.5]} 21... Raf8 {[%clk 0:02:26.1]} 22. exf4 {[%clk 0:02:38.8]}
22... Rxf4 {[%clk 0:02:22.2]} 23. Ne2 {[%clk 0:02:37]} 23... Rh4 {[%clk
0:02:13.3]} 24. Qg6 {[%clk 0:02:37]} 24... Rf6 {[%clk 0:02:13]} 0-1

[Event "Late-Titled-Tuesday-Blitz-December-26-2023"]
[Site "Chess.com"]
[Date "2023.12.26"]
[Round "7"]
[White "HalfIsCrayfish"]
[Black "Kapitan_Bayan"]
[Result "1-0"]
[WhiteElo "2622"]
[BlackElo "2349"]
[TimeControl "180+1"]
[EndTime "15:12:33 PST"]
[Termination "HalfIsCrayfish won by resignation"]

1. e4 {[%clk 0:03:00.9]} 1... c5 {[%clk 0:02:59.9]} 2. Nc3 {[%clk 0:03:01.2]}
2... d6 {[%clk 0:03:00.2]} 3. d4 {[%clk 0:03:01.3]} 3... cxd4 {[%clk 0:03:00.3]}
4. Qxd4 {[%clk 0:03:02.2]} 4... Nc6 {[%clk 0:03:00.7]} 5. Bb5 {[%clk 0:03:01.5]}
5... Bd7 {[%clk 0:03:00.9]} 6. Bxc6 {[%clk 0:03:01]} 6... Bxc6 {[%clk
0:03:01.8]} 7. Bg5 {[%clk 0:03:00.7]} 7... Nf6 {[%clk 0:03:01.7]} 8. O-O-O
{[%clk 0:02:59.8]} 8... e6 {[%clk 0:03:01.2]} 9. Nge2 {[%clk 0:02:54.9]} 9...
Be7 {[%clk 0:03:00.6]} 10. f4 {[%clk 0:02:50.2]} 10... h6 {[%clk 0:02:58.5]} 11.
Bh4 {[%clk 0:02:45.6]} 11... Rc8 {[%clk 0:02:50.1]} 12. Kb1 {[%clk 0:02:08.2]}
12... a6 {[%clk 0:02:43.8]} 13. Rhg1 {[%clk 0:02:04.1]} 13... Nxe4 {[%clk
0:02:20]} 14. Bxe7 {[%clk 0:01:55.8]} 14... Qxe7 {[%clk 0:02:19]} 15. Nxe4
{[%clk 0:01:54.7]} 1-0

[Event "Late-Titled-Tuesday-Blitz-December-26-2023"]
[Site "Chess.com"]
[Date "2023.12.26"]
[Round "7"]
[White "OneTrickPony_82"]
[Black "Jesusesmifuerza"]
[Result "1-0"]
[WhiteElo "2497"]
[BlackElo "2211"]
[TimeControl "180+1"]
[EndTime "15:12:46 PST"]
[Termination "OneTrickPony_82 won by resignation"]

1. d4 {[%clk 0:03:00.9]} 1... d5 {[%clk 0:02:55.5]} 2. c4 {[%clk 0:03:00.6]}
2... c6 {[%clk 0:02:55.4]} 3. Nf3 {[%clk 0:03:00.2]} 3... Nf6 {[%clk 0:02:55.8]}
4. cxd5 {[%clk 0:03:00.5]} 4... cxd5 {[%clk 0:02:56.7]} 5. Nc3 {[%clk
0:03:00.2]} 5... e6 {[%clk 0:02:56.3]} 6. Bf4 {[%clk 0:03:00.4]} 6... Bd6 {[%clk
0:02:56.7]} 7. Bg3 {[%clk 0:03:00.3]} 7... Nc6 {[%clk 0:02:54.9]} 8. e3 {[%clk
0:03:00.4]} 8... a6 {[%clk 0:02:53.8]} 9. Bd3 {[%clk 0:03:00.2]} 9... O-O {[%clk
0:02:53.7]} 10. Rc1 {[%clk 0:02:57.9]} 10... Qc7 {[%clk 0:02:53]} 11. Bh4 {[%clk
0:02:46.8]} 11... Be7 {[%clk 0:02:41.2]} 12. O-O {[%clk 0:02:46.3]} 12... e5
{[%clk 0:02:39.7]} 13. Bxf6 {[%clk 0:02:26.6]} 13... Bxf6 {[%clk 0:02:31.6]} 14.
Nxd5 {[%clk 0:02:26.2]} 14... Qd6 {[%clk 0:02:30.7]} 15. Nxf6+ {[%clk
0:02:24.7]} 15... Qxf6 {[%clk 0:02:31.6]} 16. dxe5 {[%clk 0:02:09.6]} 16... Nxe5
{[%clk 0:02:31.3]} 17. Nxe5 {[%clk 0:02:09.4]} 17... Qxe5 {[%clk 0:02:32.2]} 18.
Qc2 {[%clk 0:02:00.6]} 18... h6 {[%clk 0:02:22]} 19. Qc5 {[%clk 0:01:56.2]}
19... Qxb2 {[%clk 0:02:18.6]} 20. Bh7+ {[%clk 0:01:55.7]} 20... Kxh7 {[%clk
0:02:15.2]} 21. Qxf8 {[%clk 0:01:56.3]} 1-0

[Event "Late-Titled-Tuesday-Blitz-December-26-2023"]
[Site "Chess.com"]
[Date "2023.12.26"]
[Round "7"]
[White "Mikayel99"]
[Black "German_Bazeev"]
[Result "0-1"]
[WhiteElo "2580"]
[BlackElo "2843"]
[TimeControl "180+1"]
[EndTime "15:12:53 PST"]
[Termination "German_Bazeev won by resignation"]

1. e4 {[%clk 0:03:00.9]} 1... c5 {[%clk 0:02:56.1]} 2. Nf3 {[%clk 0:02:59.7]}
2... Nc6 {[%clk 0:02:56.8]} 3. Bb5 {[%clk 0:02:59.2]} 3... g6 {[%clk 0:02:57.2]}
4. O-O {[%clk 0:02:59.5]} 4... Bg7 {[%clk 0:02:57.1]} 5. c3 {[%clk 0:02:59.5]}
5... Nf6 {[%clk 0:02:56.7]} 6. Re1 {[%clk 0:02:59.5]} 6... O-O {[%clk
0:02:57.1]} 7. e5 {[%clk 0:02:59.5]} 7... Nd5 {[%clk 0:02:55.1]} 8. Bc4 {[%clk
0:02:55.8]} 8... Nb6 {[%clk 0:02:54]} 9. Bb3 {[%clk 0:02:56.4]} 9... c4 {[%clk
0:02:54.5]} 10. Bc2 {[%clk 0:02:56.9]} 10... d6 {[%clk 0:02:52.7]} 11. exd6
{[%clk 0:02:57.1]} 11... Qxd6 {[%clk 0:02:53.2]} 12. d4 {[%clk 0:02:57.8]} 12...
cxd3 {[%clk 0:02:52.9]} 13. Qxd3 {[%clk 0:02:57.8]} 13... Qxd3 {[%clk
0:02:41.5]} 14. Bxd3 {[%clk 0:02:58.7]} 14... e5 {[%clk 0:02:40.6]} 15. Bb5
{[%clk 0:02:55]} 15... f6 {[%clk 0:02:39.5]} 16. Bxc6 {[%clk 0:02:52.8]} 16...
bxc6 {[%clk 0:02:40.4]} 17. Na3 {[%clk 0:02:51]} 17... Be6 {[%clk 0:02:32.6]}
18. Be3 {[%clk 0:02:49.2]} 18... Na4 {[%clk 0:02:29.3]} 19. b3 {[%clk
0:02:30.9]} 19... Nxc3 {[%clk 0:02:21.5]} 20. Rec1 {[%clk 0:02:30.6]} 20... Ne2+
{[%clk 0:02:21.1]} 21. Kf1 {[%clk 0:02:28.1]} 21... Nxc1 {[%clk 0:02:22]} 22.
Rxc1 {[%clk 0:02:28.3]} 22... Bd5 {[%clk 0:02:22.8]} 23. Nd2 {[%clk 0:02:26.3]}
23... f5 {[%clk 0:02:23.4]} 24. Bc5 {[%clk 0:02:25.7]} 24... Rfd8 {[%clk
0:02:22.1]} 25. Nac4 {[%clk 0:02:25.9]} 25... e4 {[%clk 0:02:16.3]} 26. Ke2
{[%clk 0:02:23.3]} 26... Bh6 {[%clk 0:02:16]} 27. Ne3 {[%clk 0:02:23]} 27... Be6
{[%clk 0:02:05.9]} 28. Ndc4 {[%clk 0:02:21.1]} 28... f4 {[%clk 0:02:03.2]} 29.
Nc2 {[%clk 0:02:17.4]} 29... f3+ {[%clk 0:02:02.3]} 0-1

[Event "Late-Titled-Tuesday-Blitz-December-26-2023"]
[Site "Chess.com"]
[Date "2023.12.26"]
[Round "7"]
[White "thechesscorner64"]
[Black "Nick12772"]
[Result "1-0"]
[WhiteElo "2447"]
[BlackElo "2309"]
[TimeControl "180+1"]
[EndTime "15:13:14 PST"]
[Termination "thechesscorner64 won by resignation"]

1. e4 {[%clk 0:03:00.9]} 1... e6 {[%clk 0:03:00.2]} 2. Qe2 {[%clk 0:02:54.2]}
2... d5 {[%clk 0:03:01.1]} 3. exd5 {[%clk 0:02:54]} 3... Qxd5 {[%clk 0:03:01.5]}
4. Nc3 {[%clk 0:02:53.9]} 4... Qd8 {[%clk 0:03:02.2]} 5. Nf3 {[%clk 0:02:54.1]}
5... Nf6 {[%clk 0:03:02.8]} 6. b3 {[%clk 0:02:54.4]} 6... Be7 {[%clk 0:03:02.7]}
7. Bb2 {[%clk 0:02:54.7]} 7... O-O {[%clk 0:03:03.6]} 8. O-O-O {[%clk
0:02:54.6]} 8... c6 {[%clk 0:03:02.4]} 9. g4 {[%clk 0:02:54.1]} 9... b5 {[%clk
0:02:59.6]} 10. g5 {[%clk 0:02:53.7]} 10... Nd5 {[%clk 0:02:59.8]} 11. Rg1
{[%clk 0:02:53]} 11... Nxc3 {[%clk 0:02:52.2]} 12. dxc3 {[%clk 0:02:50.4]} 12...
Qb6 {[%clk 0:02:39.3]} 13. Ne5 {[%clk 0:02:44.4]} 13... a5 {[%clk 0:02:33.3]}
14. Qh5 {[%clk 0:02:22.1]} 14... Qxf2 {[%clk 0:02:23]} 15. Bd3 {[%clk
0:02:13.7]} 15... g6 {[%clk 0:01:56.4]} 16. Nxg6 {[%clk 0:02:05.6]} 16... fxg6
{[%clk 0:01:34.5]} 17. Bxg6 {[%clk 0:02:04.4]} 17... hxg6 {[%clk 0:01:34]} 18.
Qxg6+ {[%clk 0:02:02.5]} 18... Kh8 {[%clk 0:01:34.2]} 19. c4+ {[%clk 0:01:59.1]}
1-0

[Event "Late-Titled-Tuesday-Blitz-December-26-2023"]
[Site "Chess.com"]
[Date "2023.12.26"]
[Round "7"]
[White "Bala-Afiada"]
[Black "jcmesafischer"]
[Result "0-1"]
[WhiteElo "2018"]
[BlackElo "2303"]
[TimeControl "180+1"]
[EndTime "15:13:18 PST"]
[Termination "jcmesafischer won by resignation"]

1. d4 {[%clk 0:03:00.9]} 1... Nf6 {[%clk 0:02:57.7]} 2. c4 {[%clk 0:03:01.3]}
2... e6 {[%clk 0:02:55.4]} 3. g3 {[%clk 0:03:01.5]} 3... d5 {[%clk 0:02:54.9]}
4. Nf3 {[%clk 0:03:01.9]} 4... Bb4+ {[%clk 0:02:52.5]} 5. Bd2 {[%clk 0:03:01.9]}
5... Be7 {[%clk 0:02:52.7]} 6. Bg2 {[%clk 0:03:01.9]} 6... O-O {[%clk
0:02:52.1]} 7. O-O {[%clk 0:03:02]} 7... dxc4 {[%clk 0:02:52.1]} 8. Ne5 {[%clk
0:03:02.1]} 8... Qxd4 {[%clk 0:02:50.5]} 9. Bc3 {[%clk 0:02:58.6]} 9... Qc5
{[%clk 0:02:45]} 10. a3 {[%clk 0:02:39.3]} 10... Rd8 {[%clk 0:02:40.1]} 11. Qc2
{[%clk 0:02:39.1]} 11... Nd5 {[%clk 0:02:38]} 12. Be4 {[%clk 0:02:30]} 12... f5
{[%clk 0:02:22.5]} 13. Bf3 {[%clk 0:02:21.1]} 13... Nxc3 {[%clk 0:02:21.8]} 14.
Qxc3 {[%clk 0:02:13.9]} 14... Bf6 {[%clk 0:02:21.4]} 15. Qxc4 {[%clk 0:01:47.5]}
15... Qxe5 {[%clk 0:02:19.7]} 16. Nc3 {[%clk 0:01:43.1]} 16... Nc6 {[%clk
0:02:15.6]} 17. Bxc6 {[%clk 0:01:29.6]} 17... bxc6 {[%clk 0:02:15.1]} 18. Qxc6
{[%clk 0:01:30.5]} 18... Rb8 {[%clk 0:02:13.1]} 19. Nb5 {[%clk 0:01:24.1]} 19...
Rxb5 {[%clk 0:02:08.9]} 0-1

[Event "Late-Titled-Tuesday-Blitz-December-26-2023"]
[Site "Chess.com"]
[Date "2023.12.26"]
[Round "7"]
[White "ChessLebaneseSalah"]
[Black "HanSchut"]
[Result "0-1"]
[WhiteElo "2427"]
[BlackElo "2273"]
[TimeControl "180+1"]
[EndTime "15:13:34 PST"]
[Termination "HanSchut won by checkmate"]

1. e4 {[%clk 0:03:00.9]} 1... c5 {[%clk 0:02:57.8]} 2. Nf3 {[%clk 0:03:00.9]}
2... d6 {[%clk 0:02:58]} 3. d4 {[%clk 0:03:01.5]} 3... cxd4 {[%clk 0:02:58.8]}
4. Nxd4 {[%clk 0:03:02.4]} 4... Nf6 {[%clk 0:02:59.1]} 5. Nc3 {[%clk 0:03:03.1]}
5... a6 {[%clk 0:02:59.6]} 6. f3 {[%clk 0:03:03.1]} 6... e5 {[%clk 0:02:59.8]}
7. Nb3 {[%clk 0:03:03.8]} 7... Be6 {[%clk 0:03:00.2]} 8. Be3 {[%clk 0:03:04.4]}
8... Be7 {[%clk 0:03:00.8]} 9. Qd2 {[%clk 0:03:05]} 9... Nbd7 {[%clk 0:03:00.7]}
10. O-O-O {[%clk 0:03:05.4]} 10... O-O {[%clk 0:03:01.3]} 11. g4 {[%clk
0:03:05.8]} 11... b5 {[%clk 0:03:01.8]} 12. h4 {[%clk 0:03:05.8]} 12... b4
{[%clk 0:03:01.8]} 13. Nd5 {[%clk 0:03:01.7]} 13... Bxd5 {[%clk 0:03:01.4]} 14.
exd5 {[%clk 0:03:02.6]} 14... Nb6 {[%clk 0:03:01.9]} 15. Bxb6 {[%clk 0:02:54.6]}
15... Qxb6 {[%clk 0:03:02.8]} 16. g5 {[%clk 0:02:55]} 16... Nh5 {[%clk
0:02:56.8]} 17. Bd3 {[%clk 0:02:51.2]} 17... g6 {[%clk 0:02:54.8]} 18. Kb1
{[%clk 0:02:32]} 18... a5 {[%clk 0:02:54]} 19. Nc1 {[%clk 0:02:31.9]} 19... a4
{[%clk 0:02:49]} 20. Ne2 {[%clk 0:02:28]} 20... Qc5 {[%clk 0:02:20.9]} 21. Be4
{[%clk 0:02:17.5]} 21... Rfc8 {[%clk 0:02:09.4]} 22. f4 {[%clk 0:02:13.7]} 22...
a3 {[%clk 0:01:38.9]} 23. b3 {[%clk 0:02:05.6]} 23... exf4 {[%clk 0:01:32.3]}
24. Nxf4 {[%clk 0:01:59.5]} 24... Nxf4 {[%clk 0:01:31.5]} 25. Qxf4 {[%clk
0:01:59.4]} 25... Qc3 {[%clk 0:01:32]} 26. Qd2 {[%clk 0:01:56.5]} 26... Qb2#
{[%clk 0:01:31.3]} 0-1

[Event "Late-Titled-Tuesday-Blitz-December-26-2023"]
[Site "Chess.com"]
[Date "2023.12.26"]
[Round "7"]
[White "Zampronha1971"]
[Black "ural58"]
[Result "1-0"]
[WhiteElo "2343"]
[BlackElo "2467"]
[TimeControl "180+1"]
[EndTime "15:14:27 PST"]
[Termination "Zampronha1971 won on time"]

1. e4 {[%clk 0:03:00.9]} 1... d5 {[%clk 0:01:18.5]} 2. exd5 {[%clk 0:02:57.2]}
2... Qxd5 {[%clk 0:01:11.3]} 3. Nc3 {[%clk 0:02:56.8]} 3... Qa5 {[%clk 0:01:11]}
4. d4 {[%clk 0:02:57.5]} 4... Nf6 {[%clk 0:01:09.8]} 5. Nf3 {[%clk 0:02:57.8]}
5... Nc6 {[%clk 0:01:06]} 6. Bb5 {[%clk 0:02:52.8]} 6... Ne4 {[%clk 0:00:55.9]}
7. Bxc6+ {[%clk 0:02:51.6]} 7... bxc6 {[%clk 0:00:41.5]} 8. O-O {[%clk
0:02:52.1]} 8... Nxc3 {[%clk 0:00:40.2]} 9. bxc3 {[%clk 0:02:53]} 9... Bf5
{[%clk 0:00:39.8]} 10. Bd2 {[%clk 0:02:43.4]} 10... e6 {[%clk 0:00:34]} 11. Ne5
{[%clk 0:02:40.2]} 11... Qa4 {[%clk 0:00:30.5]} 12. Qf3 {[%clk 0:02:31.5]} 12...
Bd6 {[%clk 0:00:29.6]} 13. Nxc6 {[%clk 0:02:07.3]} 1-0